bitfinex/quotes_BTCUSD_20250314
["timestamp","ask_amount","ask_price","bid_price","bid_amount"]
[1741955490936,0.03271811,83587.0,83586.0,0.251237]
[1741955491145,0.3,83588.0,83587.0,0.251234]
[1741955491605,0.3,83588.0,83586.0,0.239274]
[1741955491805,0.3,83588.0,83586.0,0.251237]
[1741955492444,0.33223366,83588.0,83584.0,0.239279]
[1741955492646,0.3,83586.0,83584.0,0.239277]
[1741955493025,0.011964,83581.0,83576.0,0.239302]
[1741955493370,0.3,83580.0,83578.0,0.239297]
[1741955493559,0.3,83580.0,83579.0,0.239294]
[1741955494359,0.539286,83582.0,83579.0,0.239294]
[1741955494721,0.3,83582.0,83580.0,0.23929]
[1741955494926,0.239291,83580.0,83579.0,0.004]
[1741955495121,0.539291,83580.0,83579.0,0.004]
[1741955495595,0.3,83579.0,83578.0,0.239296]
[1741955495890,0.3,83579.0,83578.0,0.243296]
[1741955496404,0.3,83579.0,83577.0,0.239298]
[1741955496745,0.3,83577.0,83573.0,0.0001695]
[1741955496950,0.551273,83574.0,83573.0,0.0001695]
[1741955497187,0.3,83574.0,83573.0,0.0001695]
[1741955497590,0.3,83574.0,83573.0,0.2514455]
[1741955498104,0.3,83574.0,83573.0,0.2554455]
[1741955498310,0.3,83574.0,83573.0,0.3275455]
[1741955498604,0.3,83574.0,83573.0,0.3305455]
[1741955498828,0.3,83574.0,83573.0,0.2424805]
[1741955499009,0.3,83574.0,83573.0,0.2464805]
[1741955499794,0.30897979,83574.0,83573.0,0.2464805]
[1741955500204,0.54828779,83574.0,83573.0,0.0071695]
[1741955500374,0.56025279,83574.0,83573.0,0.0071695]
[1741955500944,0.30897979,83574.0,83573.0,0.0071695]
[1741955501649,0.2218753,83575.0,83573.0,0.0071695]
[1741955502214,0.239308,83574.0,83573.0,0.0071695]
[1741955502414,0.239308,83574.0,83573.0,0.0031695]
[1741955502619,0.251273,83574.0,83573.0,0.0031695]
[1741955502933,0.2218753,83575.0,83573.0,0.0071695]
[1741955503283,0.23107374,83575.0,83573.0,0.2464805]
[1741955503401,0.23107374,83575.0,83573.0,0.2424805]
[1741955503615,0.23107374,83575.0,83573.0,0.2464805]
[1741955504311,0.00919844,83575.0,83573.0,0.2464805]
[1741955504463,0.00919844,83575.0,83574.0,0.251273]
[1741955504660,0.251251,83582.0,83578.0,0.239296]
[1741955504862,0.011964,83581.0,83577.0,0.239299]
[1741955505667,0.239294,83579.0,83576.0,0.251265]
[1741955506217,0.251258,83581.0,83577.0,0.239298]
[1741955506536,0.24834364,83580.0,83577.0,0.239298]
[1741955506711,0.24834364,83580.0,83577.0,0.241298]
[1741955507092,0.239295,83579.0,83577.0,0.241298]
[1741955507303,0.239295,83579.0,83577.0,0.219298]
[1741955507480,0.239295,83579.0,83577.0,0.221298]
[1741955507681,0.239295,83579.0,83577.0,0.002]
[1741955508075,0.539297,83578.0,83577.0,0.002]
[1741955508277,0.239302,83577.0,83573.0,0.2514455]
[1741955508516,0.239305,83576.0,83573.0,0.2394805]
[1741955508775,0.239308,83574.0,83573.0,0.0001695]
[1741955509104,0.539308,83574.0,83573.0,0.0001695]
[1741955509990,0.3,83574.0,83573.0,0.0001695]
[1741955510197,0.3,83574.0,83573.0,0.0041695]
[1741955510782,0.3,83574.0,83573.0,0.0071695]
[1741955510964,0.539308,83574.0,83573.0,0.0071695]
[1741955511172,0.539308,83574.0,83573.0,0.0041695]
[1741955511398,0.539308,83574.0,83573.0,0.0071695]
[1741955511791,0.3,83574.0,83573.0,0.0071695]
[1741955512514,0.539308,83574.0,83573.0,0.0071695]
[1741955512675,0.551273,83574.0,83573.0,0.0071695]
[1741955513078,0.251273,83574.0,83573.0,0.0071695]
[1741955513708,0.239308,83574.0,83573.0,0.0071695]
[1741955514534,0.251273,83574.0,83573.0,0.0071695]
[1741955515462,0.251267,83577.0,83574.0,0.239306]
[1741955515806,0.24811276,83581.0,83576.0,0.011965]
[1741955515989,0.239291,83580.0,83577.0,0.239297]
[1741955516216,0.239291,83580.0,83576.0,0.239302]
[1741955516379,0.239294,83579.0,83576.0,0.239302]
[1741955516787,0.239291,83580.0,83577.0,0.239299]
[1741955516983,0.1554781,83582.0,83581.0,0.239288]
[1741955516984,0.0089141,83582.0,83581.0,0.239288]
[1741955517215,0.239278,83585.0,83581.0,0.251252]
[1741955517408,0.239285,83583.0,83579.0,0.239291]
[1741955517613,0.011964,83580.0,83576.0,0.239303]
[1741955517791,0.239297,83579.0,83576.0,0.239303]
[1741955517990,0.011964,83579.0,83574.0,0.2393]
[1741955518198,0.251261,83578.0,83574.0,0.2393]
[1741955518738,0.251261,83578.0,83575.0,0.239305]
[1741955518899,0.011964,83579.0,83576.0,0.2403]
[1741955518900,0.251259,83579.0,83576.0,0.2403]
[1741955519263,0.239297,83578.0,83576.0,0.240302]
[1741955519395,0.239297,83578.0,83576.0,0.218302]
[1741955519597,0.239297,83578.0,83575.0,0.239305]
[1741955519802,0.239294,83579.0,83577.0,0.2393]
[1741955520230,0.239294,83579.0,83577.0,0.2394695]
[1741955520479,0.011964,83580.0,83579.0,0.239294]
[1741955520480,0.3,83580.0,83579.0,0.239294]
[1741955521188,0.3,83578.0,83577.0,0.2394695]
[1741955521389,0.3,83580.0,83577.0,0.0001695]
[1741955521566,0.239293,83580.0,83577.0,0.0001695]
[1741955521735,0.3,83579.0,83577.0,0.2394685]
[1741955521937,0.3,83579.0,83577.0,0.2404685]
[1741955522190,0.539295,83579.0,83577.0,0.0001695]
[1741955522384,0.3,83579.0,83577.0,0.2394685]
[1741955522622,0.3,83579.0,83578.0,0.239297]
[1741955522775,0.3,83579.0,83577.0,0.2394685]
[1741955522976,0.539294,83579.0,83577.0,0.2394685]
[1741955523582,0.539294,83579.0,83577.0,0.0001695]
[1741955523788,0.551261,83578.0,83577.0,0.0011695]
[1741955524149,0.551261,83578.0,83577.0,0.0001695]
[1741955524323,0.551261,83578.0,83577.0,0.0021695]
[1741955524699,0.551261,83578.0,83577.0,0.0011695]
[1741955525475,0.551261,83578.0,83577.0,0.0021695]
[1741955529857,0.539297,83578.0,83577.0,0.0021695]
[1741955530584,0.3,83578.0,83577.0,0.2534345]
[1741955530957,0.539297,83578.0,83577.0,0.0021695]
[1741955531566,0.3,83578.0,83577.0,0.0021695]
[1741955531782,0.551261,83578.0,83577.0,0.0021695]
[1741955532379,0.539297,83578.0,83577.0,0.0021695]
[1741955532554,0.3,83578.0,83577.0,0.0021695]
[1741955532704,0.539297,83578.0,83577.0,0.0021695]
[1741955533715,0.3,83578.0,83577.0,0.0021695]
[1741955533915,0.3,83578.0,83577.0,0.2414695]
[1741955534287,0.3,83578.0,83577.0,0.0021695]
[1741955534771,0.3,83578.0,83577.0,0.2414695]
[1741955536403,0.3,83578.0,83577.0,0.0021695]
[1741955536611,0.3,83578.0,83577.0,0.2393]
[1741955537907,0.3,83577.0,83576.0,0.2394365]
[1741955538123,0.239295,83579.0,83576.0,0.2394365]
[1741955538337,0.3,83578.0,83577.0,0.2393]
[1741955538636,0.3,83578.0,83576.0,0.239303]
[1741955539257,0.3,83579.0,83577.0,0.2393]
[1741955539474,0.539296,83579.0,83576.0,0.252268]
[1741955539933,0.539296,83579.0,83576.0,0.251268]
[1741955540115,0.539296,83579.0,83576.0,0.252268]
[1741955540356,0.3,83579.0,83577.0,0.239297]
[1741955540539,0.239297,83578.0,83576.0,0.239302]
[1741955540779,0.539294,83579.0,83576.0,0.240302]
[1741955541467,0.539294,83579.0,83576.0,0.241302]
[1741955541681,0.539294,83579.0,83576.0,0.240302]
[1741955541861,0.239298,83578.0,83576.0,0.240302]
[1741955542118,0.239298,83578.0,83576.0,0.241302]
[1741955542340,0.3,83579.0,83576.0,0.253267]
[1741955542528,0.539296,83579.0,83576.0,0.253267]
[1741955542961,0.539296,83579.0,83576.0,0.252267]
[1741955543189,0.3,83579.0,83577.0,0.239299]
[1741955543367,0.539295,83579.0,83576.0,0.253267]
[1741955543600,0.539295,83579.0,83577.0,0.239299]
[1741955543835,0.539295,83579.0,83577.0,0.217299]
[1741955543964,0.3,83577.0,83576.0,0.240302]
[1741955546342,0.3,83577.0,83576.0,0.002]
[1741955546539,0.3,83577.0,83576.0,0.0021694]
[1741955547512,0.0003388,83579.0,83576.0,0.0021694]
[1741955547887,0.5393,83577.0,83576.0,0.0021694]
[1741955548085,0.551265,83577.0,83576.0,0.0021694]
[1741955548411,0.551265,83577.0,83576.0,0.0011694]
[1741955548702,0.551265,83577.0,83576.0,0.0001694]
[1741955548905,0.551265,83577.0,83576.0,0.0021694]
[1741955549223,0.551265,83577.0,83576.0,0.0011694]
[1741955549629,0.551265,83577.0,83576.0,0.0021694]
[1741955550050,0.551265,83577.0,83576.0,0.0011694]
[1741955550454,0.551265,83577.0,83576.0,0.0021694]
[1741955551111,0.3,83574.0,83573.0,0.2278183]
[1741955552491,0.3,83574.0,83573.0,0.002]
[1741955553582,0.539308,83574.0,83573.0,0.004]
[1741955553846,0.3,83574.0,83573.0,0.004]
[1741955554255,0.5393,83577.0,83573.0,0.004]
[1741955554461,0.239303,83576.0,83574.0,0.239306]
[1741955554663,0.3,83574.0,83573.0,0.243311]
[1741955555239,0.3,83574.0,83573.0,0.241311]
[1741955555567,0.3,83574.0,83573.0,0.003]
[1741955556056,0.3,83574.0,83573.0,0.002]
[1741955556260,0.29864389,83574.0,83573.0,0.002]
[1741955556420,0.29864389,83574.0,83573.0,0.004]
[1741955556626,0.65639116,83574.0,83573.0,0.004]
[1741955556824,0.65639116,83574.0,83573.0,0.002]
[1741955557858,0.65639116,83574.0,83573.0,0.004]
[1741955558261,0.65639116,83574.0,83562.0,0.319442]
[1741955558262,0.239337,83565.0,83562.0,0.306781]
[1741955558468,0.011966,83568.0,83562.0,0.079406]
[1741955558890,0.239332,83566.0,83563.0,0.239339]
[1741955559717,0.239334,83565.0,83563.0,0.239339]
[1741955560254,0.239335,83565.0,83563.0,0.239339]
[1741955560377,0.239337,83564.0,83562.0,0.070439]
[1741955560576,0.251301,83565.0,83562.0,0.070439]
[1741955560926,0.239337,83564.0,83562.0,0.067439]
[1741955561132,0.239331,83566.0,83563.0,0.004]
[1741955561406,0.3,83567.0,83564.0,0.239337]
[1741955561650,0.76012,83585.0,83565.0,0.011966]
[1741955561867,0.78626726,83598.0,83576.0,0.379468]
[1741955561868,0.03370161,83584.0,83576.0,0.379468]
[1741955562316,0.03370161,83584.0,83576.0,0.38762407]
[1741955562689,0.239288,83582.0,83576.0,0.13635607]
[1741955562915,0.3003388,83579.0,83576.0,0.24745907]
[1741955563118,0.3003388,83579.0,83576.0,0.25045907]
[1741955563319,0.3003388,83579.0,83576.0,0.26242407]
[1741955563877,0.3003388,83579.0,83576.0,0.26442407]
[1741955564050,0.0003388,83579.0,83576.0,0.26442407]
[1741955564848,0.2396338,83579.0,83576.0,0.26142407]
[1741955565266,0.0003388,83579.0,83576.0,0.01215607]
[1741955565483,0.56771569,83577.0,83576.0,0.01215607]
[1741955565728,0.56771569,83577.0,83576.0,0.004]
[1741955565941,0.5396388,83577.0,83576.0,0.004]
[1741955566145,0.3003388,83577.0,83576.0,0.002]
[1741955566381,0.5396388,83577.0,83576.0,0.01016338]
[1741955566585,0.5516038,83577.0,83576.0,0.002]
[1741955567098,0.3,83572.0,83570.0,0.315318]
[1741955567418,0.3,83572.0,83571.0,0.0081985]
[1741955567738,0.539314,83572.0,83571.0,0.0081985]
[1741955568170,0.3,83572.0,83571.0,0.0081985]
[1741955568855,0.539314,83572.0,83571.0,0.0081985]
[1741955569010,0.551279,83572.0,83571.0,0.0081985]
[1741955569426,0.3,83566.0,83563.0,0.23934]
[1741955569827,0.539331,83566.0,83564.0,0.00824778]
[1741955570229,0.3,83563.0,83562.0,0.239342]
[1741955570425,0.3,83566.0,83564.0,0.239337]
[1741955570680,0.23519482,83569.0,83564.0,0.239337]
[1741955571320,0.239331,83566.0,83564.0,0.004]
[1741955571468,0.251287,83570.0,83564.0,0.015966]
[1741955571661,0.239326,83568.0,83565.0,0.239333]
[1741955572289,0.251289,83569.0,83564.0,0.243336]
[1741955572290,0.239329,83567.0,83564.0,0.243336]
[1741955572900,0.3,83566.0,83564.0,0.243336]
[1741955573096,0.3,83566.0,83564.0,0.239336]
[1741955573332,0.3,83566.0,83564.0,0.003]
[1741955573714,0.3,83566.0,83564.0,0.007]
[1741955573886,0.3,83566.0,83565.0,0.00824076]
[1741955574320,0.539332,83566.0,83565.0,0.00824076]
[1741955574640,0.3,83566.0,83565.0,0.00824076]
[1741955574787,0.539331,83566.0,83565.0,0.00824076]
[1741955574988,0.539331,83566.0,83565.0,0.01224076]
[1741955575859,0.551297,83566.0,83565.0,0.01224076]
[1741955576219,0.56026734,83566.0,83565.0,0.004]
[1741955576637,0.56026734,83566.0,83565.0,0.01224076]
[1741955577112,0.56026734,83566.0,83565.0,0.004]
[1741955577457,0.56026734,83566.0,83565.0,0.008]
[1741955577976,0.56026734,83566.0,83565.0,0.01624076]
[1741955578734,0.56026734,83566.0,83565.0,0.008]
[1741955579542,0.56026734,83566.0,83565.0,0.01624076]
[1741955580776,0.56026734,83566.0,83565.0,0.008]
[1741955580981,0.56026734,83566.0,83565.0,0.01624076]
[1741955581214,0.56026734,83566.0,83565.0,0.008]
[1741955582930,0.56026734,83566.0,83565.0,0.004]
[1741955583136,0.56026734,83566.0,83565.0,0.007]
[1741955583377,0.56026734,83566.0,83562.0,0.0001694]
[1741955583553,0.251307,83563.0,83562.0,0.0001694]
[1741955584748,0.251307,83563.0,83562.0,0.0021694]
[1741955584749,0.551307,83563.0,83562.0,0.0021694]
[1741955584921,0.67088203,83563.0,83562.0,0.0051694]
[1741955585339,0.67088203,83563.0,83545.0,0.2330368]
[1741955585340,0.239381,83549.0,83545.0,0.2330368]
[1741955585542,0.239381,83549.0,83546.0,0.239388]
[1741955585687,0.011969,83546.0,83542.0,0.0003388]
[1741955585883,0.011969,83548.0,83544.0,0.239394]
[1741955586091,0.23938,83549.0,83545.0,0.239391]
[1741955586296,0.251347,83550.0,83546.0,0.239387]
[1741955587052,0.239382,83549.0,83545.0,0.239391]
[1741955587262,0.3,83551.0,83547.0,0.239384]
[1741955587392,0.239377,83550.0,83548.0,0.239383]
[1741955587600,0.239385,83548.0,83546.0,0.004]
[1741955587799,0.239385,83548.0,83546.0,0.008]
[1741955588000,0.239385,83548.0,83546.0,0.004]
[1741955588397,0.239385,83548.0,83545.0,0.239391]
[1741955588649,0.23938,83549.0,83548.0,0.004]
[1741955589101,0.23938,83549.0,83548.0,0.01236209]
[1741955589304,0.23938,83549.0,83548.0,0.004]
[1741955589508,0.67092403,83549.0,83548.0,0.01236209]
[1741955589712,0.67092403,83549.0,83548.0,0.004]
[1741955589922,0.93408403,83549.0,83548.0,0.004]
[1741955590139,0.93408403,83549.0,83548.0,0.006]
[1741955590350,0.551366,83543.0,83525.0,0.0001694]
[1741955590551,0.67094103,83543.0,83525.0,0.0001694]
[1741955590867,0.239446,83526.0,83525.0,0.0001694]
[1741955591040,0.3,83540.0,83516.0,0.0003388]
[1741955591041,0.53947,83518.0,83516.0,0.0003388]
[1741955591292,0.539472,83517.0,83516.0,0.0003388]
[1741955591502,0.3,83517.0,83516.0,0.0003388]
[1741955592510,0.3,83517.0,83516.0,0.2517868]
[1741955593436,0.1266,83534.0,83521.0,0.25143]
[1741955593600,0.00918593,83543.0,83535.0,0.251391]
[1741955593601,0.02353328,83536.0,83535.0,0.251391]
[1741955593796,0.02353328,83536.0,83535.0,0.326691]
[1741955594012,0.29915456,83550.0,83548.0,0.239383]
[1741955594225,0.3,83550.0,83547.0,0.239384]
[1741955594480,0.3,83550.0,83548.0,0.239382]
[1741955594656,0.3,83550.0,83547.0,0.23938]
[1741955594860,0.3,83550.0,83547.0,0.251354]
[1741955595058,0.539378,83550.0,83546.0,0.251356]
[1741955595378,0.08609997,83549.0,83547.0,0.239386]
[1741955595785,0.32547997,83549.0,83546.0,0.239387]
[1741955596180,0.01118725,83548.0,83546.0,0.239388]
[1741955596373,0.01118725,83548.0,83545.0,0.24836]
[1741955596374,0.3,83547.0,83545.0,0.24836]
[1741955596578,0.11957503,83547.0,83546.0,0.239389]
[1741955596775,0.11957503,83547.0,83543.0,0.251366]
[1741955596988,0.3,83545.0,83543.0,0.251366]
[1741955597504,0.3,83545.0,83543.0,0.239397]
[1741955597917,0.3,83545.0,83544.0,0.239394]
[1741955598125,0.01118725,83546.0,83544.0,0.239394]
[1741955598278,0.3,83545.0,83543.0,0.239397]
[1741955598489,0.3,83545.0,83543.0,0.217397]
[1741955599105,0.31518725,83545.0,83543.0,0.217397]
[1741955599725,0.01518725,83545.0,83544.0,0.239394]
[1741955599926,0.31518725,83545.0,83543.0,0.229366]
[1741955600102,0.31518725,83545.0,83542.0,0.251368]
[1741955600280,0.55458025,83545.0,83539.0,0.239408]
[1741955600508,0.55458025,83545.0,83540.0,0.239406]
[1741955600705,0.01118725,83544.0,83540.0,0.239406]
[1741955601073,0.01118725,83544.0,83541.0,0.239401]
[1741955601272,0.01118725,83544.0,83542.0,0.239398]
[1741955601518,0.01118725,83544.0,83543.0,0.251366]
[1741955602054,0.01118725,83544.0,83543.0,0.331666]
[1741955602257,0.01718725,83544.0,83543.0,0.331666]
[1741955602390,0.01418725,83544.0,83543.0,0.331666]
[1741955602576,0.01118725,83544.0,83543.0,0.331666]
[1741955603015,0.01418725,83544.0,83543.0,0.331666]
[1741955603228,0.01418725,83544.0,83543.0,0.378266]
[1741955603427,0.01418725,83544.0,83543.0,0.39280685]
[1741955603854,0.01718725,83544.0,83543.0,0.39280685]
[1741955604047,0.01418725,83544.0,83543.0,0.40121388]
[1741955604480,0.01118725,83544.0,83543.0,0.40221388]
[1741955604685,0.01118725,83544.0,83543.0,0.40121388]
[1741955604883,0.01118725,83544.0,83543.0,0.40421388]
[1741955605481,0.01118725,83555.0,83554.0,0.251334]
[1741955605685,0.01118725,83555.0,83554.0,0.528834]
[1741955605907,0.01118725,83555.0,83554.0,0.53716373]
[1741955615081,0.01118725,83555.0,83554.0,0.28582973]
[1741955615290,0.7269703,83555.0,83554.0,0.28582973]
[1741955615744,0.7269703,83555.0,83554.0,0.26382973]
[1741955616537,0.7309703,83555.0,83554.0,0.22632163]
[1741955616763,0.7309703,83555.0,83554.0,0.2179919]
[1741955616925,0.7299703,83555.0,83554.0,0.2179919]
[1741955619140,0.72278305,83555.0,83554.0,0.2179919]
[1741955619385,0.72312205,83555.0,83554.0,0.2179919]
[1741955621371,0.80412205,83555.0,83554.0,0.2179919]
[1741955622890,0.80412205,83555.0,83554.0,0.1999919]
[1741955625338,0.80412205,83555.0,83554.0,0.11138921]
[1741955625339,6.53185505,83555.0,83554.0,0.11138921]
[1741955625801,6.53185505,83555.0,83554.0,0.0753804]
[1741955625990,6.54307193,83555.0,83554.0,0.03937075]
[1741955626117,6.53907193,83555.0,83554.0,0.03937075]
[1741955626335,6.54107193,83555.0,83554.0,0.0033611]
[1741955626546,6.54607193,83555.0,83554.0,0.0033611]
[1741955627172,0.56091888,83555.0,83554.0,0.0033611]
[1741955627376,0.3,83552.0,83549.0,0.011969]
[1741955627586,0.57288688,83555.0,83549.0,0.011969]
[1741955627587,0.02155588,83555.0,83554.0,0.333634]
[1741955627802,0.02155588,83555.0,83554.0,0.380534]
[1741955629099,0.01655588,83555.0,83554.0,0.380534]
[1741955629296,0.01155588,83555.0,83554.0,0.380534]
[1741955629564,0.01155588,83555.0,83554.0,0.376534]
[1741955629785,0.01155588,83555.0,83554.0,0.372534]
[1741955632089,0.01155588,83555.0,83554.0,0.3727034]
[1741955633953,0.01155588,83555.0,83554.0,0.38103163]
[1741955636030,8.8e-07,83555.0,83554.0,1.25270134]
[1741955636235,8.8e-07,83555.0,83554.0,1.26724219]
[1741955637059,0.0003388,83569.0,83568.0,0.251292]
[1741955637296,8e-07,83569.0,83568.0,1.27020256]
[1741955637478,0.02,83585.0,83580.0,0.39849585]
[1741955637479,4e-07,83581.0,83580.0,0.39849585]
[1741955637717,4e-07,83587.0,83585.0,0.0833]
[1741955637922,4e-07,83587.0,83586.0,0.35027381]
[1741955638138,0.2393394,83623.0,83613.0,0.251156]
[1741955638139,0.00886082,83620.0,83613.0,0.251156]
[1741955638347,0.00886082,83620.0,83613.0,0.43159987]
[1741955638348,2.6e-07,83614.0,83613.0,0.43159987]
[1741955638553,2.6e-07,83617.0,83616.0,0.251147]
[1741955638760,2.6e-07,83617.0,83616.0,0.26568785]
[1741955638973,2.6e-07,83617.0,83616.0,0.27450698]
[1741955639178,2.6e-07,83617.0,83616.0,0.40906698]
[1741955639804,2.6e-07,83617.0,83616.0,0.41006698]
[1741955640012,2.6e-07,83617.0,83616.0,0.00981913]
[1741955640416,2.6e-07,83617.0,83616.0,0.01081913]
[1741955640635,0.01195926,83617.0,83616.0,0.01081913]
[1741955640766,2.6e-07,83617.0,83616.0,0.01081913]
[1741955641189,0.02228795,83617.0,83616.0,0.00981913]
[1741955641627,0.02328795,83617.0,83616.0,0.00981913]
[1741955641831,0.02328795,83617.0,83616.0,0.00881913]
[1741955642260,0.00200026,83617.0,83616.0,0.00881913]
[1741955642680,0.001,83617.0,83616.0,0.00881913]
[1741955642891,0.011958,83620.0,83616.0,0.00881913]
[1741955643097,0.251142,83618.0,83616.0,0.00881913]
[1741955643317,0.241186,83617.0,83613.0,0.239196]
[1741955643587,0.241186,83617.0,83614.0,0.00882958]
[1741955643588,0.013959,83617.0,83614.0,0.00882958]
[1741955643827,0.013959,83617.0,83591.0,0.18044387]
[1741955643828,0.25119,83602.0,83596.0,0.239245]
[1741955644046,0.00932273,83617.0,83605.0,0.011961]
[1741955644250,0.00932273,83617.0,83591.0,0.18044387]
[1741955644251,0.3,83615.0,83614.0,0.011959]
[1741955644712,0.3,83615.0,83614.0,0.251153]
[1741955644914,0.3,83615.0,83612.0,0.239199]
[1741955645115,0.539191,83615.0,83611.0,0.2392]
[1741955645551,0.239206,83610.0,83606.0,0.251176]
[1741955645720,0.239205,83611.0,83607.0,0.43161687]
[1741955645935,0.239205,83611.0,83607.0,0.18044387]
[1741955645936,0.01196,83611.0,83607.0,0.18044387]
[1741955646141,0.01196,83608.0,83607.0,0.18044387]
[1741955646676,0.31196,83608.0,83607.0,0.18044387]
[1741955648772,0.44668,83608.0,83607.0,0.18044387]
[1741955649789,0.44668,83608.0,83602.0,0.239228]
[1741955649790,0.239214,83607.0,83602.0,0.239228]
[1741955649999,0.14668,83608.0,83602.0,0.011961]
[1741955650224,0.385893,83608.0,83604.0,0.239222]
[1741955650459,0.011959,83615.0,83610.0,0.239204]
[1741955650680,0.0003388,83617.0,83614.0,0.239193]
[1741955650891,0.0003388,83617.0,83616.0,0.011959]
[1741955651306,0.0003388,83617.0,83612.0,0.239197]
[1741955651735,0.239192,83615.0,83611.0,0.01196]
[1741955651940,0.239199,83613.0,83609.0,0.251166]
[1741955652171,0.239218,83606.0,83603.0,0.011961]
[1741955652375,0.01196,83607.0,83602.0,0.011961]
[1741955652578,0.01196,83610.0,83606.0,0.664]
[1741955652831,0.239209,83609.0,83606.0,0.903217]
[1741955652958,0.239212,83608.0,83606.0,0.664]
[1741955653359,0.239214,83607.0,83606.0,0.664]
[1741955653568,0.251174,83607.0,83606.0,0.664]
[1741955653777,0.239214,83607.0,83606.0,0.664]
[1741955654197,0.251174,83607.0,83606.0,0.664]
[1741955654857,0.2622878,83607.0,83606.0,0.664]
[1741955655837,0.5622878,83607.0,83606.0,0.664]
[1741955656485,0.3,83607.0,83606.0,0.664]
[1741955656742,0.011959,83616.0,83608.0,0.01196]
[1741955656959,0.011959,83616.0,83611.0,0.2392]
[1741955656960,0.239194,83614.0,83611.0,0.2392]
[1741955657165,0.239194,83614.0,83607.0,0.239214]
[1741955657375,0.239203,83611.0,83608.0,0.239211]
[1741955658030,0.5392,83612.0,83609.0,0.239208]
[1741955658249,0.239204,83611.0,83607.0,0.239214]
[1741955658475,0.239204,83611.0,83608.0,0.23921]
[1741955659100,0.239211,83609.0,83606.0,0.664]
[1741955659489,0.239211,83608.0,83606.0,0.903216]
[1741955659658,0.239211,83608.0,83606.0,0.664]
[1741955659893,0.239211,83608.0,83606.0,0.903216]
[1741955660098,0.26232887,83610.0,83607.0,0.239214]
[1741955660311,0.239211,83608.0,83606.0,0.664]
[1741955660549,0.25117,83609.0,83606.0,0.664]
[1741955660723,0.239209,83609.0,83606.0,0.903217]
[1741955660954,0.239214,83608.0,83606.0,0.664]
[1741955661136,0.239214,83607.0,83606.0,0.664]
[1741955661902,0.251174,83607.0,83606.0,0.664]
[1741955662337,0.551174,83607.0,83606.0,0.664]
[1741955662599,0.56232887,83607.0,83606.0,0.664]
[1741955663390,0.31115487,83607.0,83606.0,0.664]
[1741955663593,0.31115487,83607.0,83606.0,0.915177]
[1741955663746,0.01115487,83607.0,83606.0,0.915177]
[1741955664999,0.01115487,83607.0,83606.0,0.996777]
[1741955665545,0.01115487,83607.0,83606.0,1.046577]
[1741955667608,0.01115487,83607.0,83606.0,1.22702087]
[1741955667825,0.01115487,83607.0,83606.0,1.24156172]
[1741955668926,0.01115487,83607.0,83606.0,1.24356172]
[1741955669133,8.7e-07,83607.0,83606.0,1.93478756]
[1741955669357,6.7e-07,83617.0,83616.0,0.327047]
[1741955669567,6.7e-07,83617.0,83616.0,1.39795756]
[1741955669793,7e-08,83623.0,83622.0,0.34156985]
[1741955671241,7e-08,83623.0,83622.0,0.52201372]
[1741955671906,0.02239471,83623.0,83622.0,0.52201372]
[1741955672076,0.02239471,83623.0,83622.0,0.52101372]
[1741955673234,0.02339471,83623.0,83622.0,0.52301372]
[1741955673440,0.02439471,83623.0,83622.0,0.52501372]
[1741955673662,0.02339471,83623.0,83622.0,0.52301372]
[1741955674312,0.02439471,83623.0,83622.0,0.52501372]
[1741955674547,7.1e-07,83623.0,83622.0,0.52501372]
[1741955674785,7.1e-07,83623.0,83622.0,1.21623956]
[1741955675091,7.1e-07,83623.0,83622.0,1.39777956]
[1741955675608,7.1e-07,83623.0,83622.0,1.26293956]
[1741955675806,7.1e-07,83623.0,83622.0,1.39789956]
[1741955676218,0.000339,83633.0,83632.0,0.251099]
[1741955676425,0.000339,83633.0,83632.0,1.10908372]
[1741955677525,0.000339,83633.0,83632.0,1.11408372]
[1741955678433,0.000339,83633.0,83632.0,1.11908372]
[1741955681945,0.01149913,83633.0,83632.0,1.11908372]
[1741955683389,0.01149913,83633.0,83632.0,1.09954287]
[1741955683814,0.01149913,83633.0,83632.0,1.10254287]
[1741955684219,0.01149913,83633.0,83632.0,1.09954287]
[1741955685560,0.01149913,83633.0,83632.0,1.09454287]
[1741955685965,0.01149913,83633.0,83632.0,1.09654287]
[1741955686304,0.01149913,83633.0,83632.0,1.09754287]
[1741955686641,0.01149913,83633.0,83632.0,1.10054287]
[1741955689676,0.01149913,83633.0,83632.0,1.09754287]
[1741955689881,0.01149913,83633.0,83632.0,1.09454287]
[1741955690408,0.01149913,83633.0,83632.0,1.09654287]
[1741955690766,0.01149913,83633.0,83632.0,1.09854287]
[1741955700529,0.11921225,83651.0,83648.0,0.239097]
[1741955700666,0.3,83652.0,83648.0,0.239097]
[1741955700873,0.3,83652.0,83650.0,0.664]
[1741955701075,0.3,83652.0,83651.0,0.239088]
[1741955701495,0.551042,83651.0,83650.0,0.664]
[1741955701756,0.3,83651.0,83650.0,0.915045]
[1741955701954,0.3,83651.0,83650.0,0.664]
[1741955702332,0.3,83651.0,83650.0,0.915045]
[1741955702534,0.0003388,83653.0,83650.0,0.915045]
[1741955702535,0.0003388,83653.0,83652.0,0.011954]
[1741955702735,0.0003388,83653.0,83652.0,0.248039]
[1741955702938,0.0003388,83653.0,83652.0,0.245039]
[1741955703703,0.0003388,83653.0,83652.0,0.236085]
[1741955704108,0.0003388,83653.0,83652.0,0.248039]
[1741955705120,0.0013388,83653.0,83652.0,0.248039]
[1741955705549,0.0003388,83653.0,83652.0,0.42848287]
[1741955705753,0.0013388,83653.0,83652.0,0.42848287]
[1741955705996,0.0013388,83653.0,83652.0,0.50928287]
[1741955706200,0.0003388,83653.0,83652.0,0.52382372]
[1741955706351,0.0003388,83653.0,83652.0,0.52482372]
[1741955706554,0.0003388,83653.0,83652.0,0.52582372]
[1741955706788,0.0003388,83653.0,83652.0,0.52482372]
[1741955706986,0.0003388,83653.0,83652.0,0.52382372]
[1741955707208,0.0003388,83653.0,83652.0,0.52782372]